fUST/lending_fUST_20250824
["ID","MTS","AMOUNT","RATE_DAILY","PERIOD"]
[381061922,1755982239701,-1000.0,0.00030609,5]
[381061925,1755982239711,-1500.0,0.00030668,5]
[381061927,1755982239720,-360.0,0.00030764,2]
[381061930,1755982239730,-1500.0,0.00031157,5]
[381061933,1755982239739,-1500.0,0.00031157,5]
[381061935,1755982239749,-204.31267991,0.00031206,2]
[381061938,1755982239758,-2000.0,0.00031216,5]
[381061941,1755982239767,-500.0,0.00031283,6]
[381061944,1755982239777,-240.0,0.00031312,2]
[381061946,1755982239786,-403.0,0.00031333,2]
[381061949,1755982239795,-1500.0,0.00031705,5]
[381061952,1755982239805,-500.0,0.00031982,5]
[381061954,1755982239814,-654.63044129,0.00031986,17]
[381061957,1755982239823,-500.0,0.000323,5]
[381061959,1755982239832,-508.52762757,0.000323,5]
[381061961,1755982239842,-500.0,0.000323,5]
[381061963,1755982239851,-500.0,0.000323,5]
[381061965,1755982239861,-500.0,0.000323,5]
[381061967,1755982239870,-500.67768814,0.000323,5]
[381061969,1755982239879,-500.0,0.000323,5]
[381061971,1755982239888,-500.0,0.000323,5]
[381061973,1755982239897,-501.65133549,0.000323,5]
[381061975,1755982239907,-500.22444816,0.00032823,5]
[381061977,1755982239916,-260.50182072,0.00032823,5]
[381061979,1755982239925,-425.66768637,0.00032848,5]
[381061981,1755982239934,-1000.0,0.00032848,5]
[381061983,1755982239944,-1000.0,0.00032848,5]
[381061985,1755982239953,-502.44756534,0.00032848,5]
[381061986,1755982239962,-500.0,0.00033475,120]
[381061987,1755982239971,-8123.34,0.000335,14]
[381061988,1755982239981,-654.63044129,0.00035439,24]
[381061989,1755982239990,-500.0,0.00035666,120]
[381061990,1755982239999,-654.63044129,0.00037166,28]
[381061991,1755982240008,-503.64461528,0.00037666,14]
[381061992,1755982240018,-500.0,0.00037666,14]
[381061993,1755982240027,-500.0,0.00037858,120]
[381061994,1755982240037,-2006.19374963,0.00038,30]
[381061995,1755982240046,-446.30682996,0.00038,120]
[381061996,1755982240055,-204.31267991,0.0003878,3]
[381061997,1755982240065,-529.05847148,0.0003879,10]
[381061998,1755982240075,-204.31267991,0.0003888,3]
[381061999,1755982240084,-160.0,0.0003889,3]
[381062000,1755982240094,-204.31267991,0.0003889,3]
[381062001,1755982240103,-654.63044129,0.00038892,32]
[381062002,1755982240112,-308908.10037625,0.000389,60]
[381062003,1755982240122,-191.56,0.000389,7]
[381062004,1755982240131,-151.0,0.000389,14]
[381062005,1755982240141,-151.0,0.000389,14]
[381062006,1755982240150,-151.0,0.000389,14]
[381062007,1755982240159,-151.0,0.000389,14]
[381062008,1755982240168,-151.0,0.000389,14]
[381062009,1755982240177,-151.0,0.000389,14]
[381062010,1755982240186,-151.0,0.000389,14]
[381062011,1755982240196,-151.0,0.000389,14]
[381062012,1755982240206,-151.0,0.000389,14]
[381062013,1755982240215,-151.0,0.000389,14]
[381062015,1755982240224,-151.0,0.000389,14]
[381062017,1755982240234,-151.0,0.000389,14]
[381062019,1755982240243,-151.0,0.000389,14]
[381062021,1755982240253,-151.0,0.000389,14]
[381062023,1755982240263,-151.0,0.000389,14]
[381062025,1755982240272,-151.0,0.000389,14]
[381062027,1755982240283,-151.0,0.000389,14]
[381062029,1755982240293,-151.0,0.000389,14]
[381062031,1755982240303,-151.0,0.000389,14]
[381062033,1755982240312,-151.0,0.000389,14]
[381062035,1755982240322,-151.0,0.000389,14]
[381062037,1755982240331,-151.0,0.000389,14]
[381062039,1755982240341,-151.0,0.000389,14]
[381062041,1755982240350,-151.290093,0.000389,14]
[381062043,1755982240360,-151.0,0.000389,14]
[381062046,1755982240369,-177.948601,0.000389,14]
[381062049,1755982240379,-151.0,0.000389,14]
[381062052,1755982240389,-151.0,0.000389,14]
[381062055,1755982240400,-151.0,0.000389,14]
[381062058,1755982240409,-151.0,0.000389,14]
[381062062,1755982240419,-151.0,0.000389,14]
[381062065,1755982240428,-151.0,0.000389,14]
[381062068,1755982240437,-151.0,0.000389,14]
[381062071,1755982240446,-151.0,0.000389,14]
[381062074,1755982240456,-151.0,0.000389,14]
[381062076,1755982240465,-151.0,0.000389,14]
[381062079,1755982240474,-151.0,0.000389,14]
[381062081,1755982240483,-151.0,0.000389,14]
[381062084,1755982240492,-151.0,0.000389,14]
[381062087,1755982240501,-151.0,0.000389,14]
[381062090,1755982240511,-151.0,0.000389,14]
[381062093,1755982240520,-789.107178,0.000389,14]
[381062096,1755982240530,-789.107178,0.000389,14]
[381062099,1755982240539,-789.107178,0.000389,14]
[381062101,1755982240548,-789.107178,0.000389,14]
[381062103,1755982240558,-167.343957,0.000389,14]
[381062105,1755982240567,-151.0,0.000389,14]
[381062107,1755982240576,-151.0,0.000389,14]
[381062110,1755982240585,-293.071925,0.000389,14]
[381062113,1755982240595,-193.259615,0.000389,14]
[381062115,1755982240609,-293.071925,0.000389,14]
[381062117,1755982240618,-293.071925,0.000389,14]
[381062119,1755982240627,-293.071925,0.000389,14]
[381062121,1755982240637,-151.0,0.000389,14]
[381062123,1755982240646,-258.527794,0.000389,14]
[381062125,1755982240655,-258.527794,0.000389,14]
[381062127,1755982240664,-258.527794,0.000389,14]
[381062129,1755982240674,-258.527794,0.000389,14]
[381062131,1755982240685,-151.0,0.000389,14]
[381062133,1755982240695,-277.623337,0.000389,14]
[381062135,1755982240704,-172.001186,0.000389,14]
[381062137,1755982240714,-172.001186,0.000389,14]
[381062139,1755982240722,-172.001186,0.000389,14]
[381062141,1755982240733,-172.001186,0.000389,14]
[381062143,1755982240742,-151.0,0.000389,14]
[381062145,1755982240751,-151.0,0.000389,14]
[381062147,1755982240760,-166.818943,0.000389,14]
[381062149,1755982240770,-151.0,0.000389,14]
[381062151,1755982240779,-166.818943,0.000389,14]
[381062153,1755982240788,-166.818943,0.000389,14]
[381062155,1755982240797,-151.0,0.000389,14]
[381062157,1755982240807,-151.0,0.000389,14]
[381062159,1755982240816,-151.0,0.000389,14]
[381062161,1755982240825,-151.0,0.000389,14]
[381062163,1755982240834,-166.818943,0.000389,14]
[381062165,1755982240843,-179.463495,0.000389,14]
[381062167,1755982240852,-179.463495,0.000389,14]
[381062169,1755982240863,-179.463495,0.000389,14]
[381062170,1755982240872,-179.463495,0.000389,14]
[381062171,1755982240882,-151.0,0.000389,14]
[381062172,1755982240892,-151.0,0.000389,14]
[381062173,1755982240901,-151.0,0.000389,14]
[381062174,1755982240912,-151.0,0.000389,14]
[381062175,1755982240922,-151.0,0.000389,14]
[381062176,1755982240932,-151.0,0.000389,14]
[381062177,1755982241101,-151.0,0.000389,14]
[381062178,1755982241115,-260.394899,0.000389,14]
[381062179,1755982241125,-260.394899,0.000389,14]
[381062180,1755982241134,-186.335141,0.000389,14]
[381062181,1755982241143,-260.394899,0.000389,14]
[381062182,1755982241153,-829.336102,0.000389,14]
[381062183,1755982241162,-186.335141,0.000389,14]
[381062184,1755982241172,-260.394899,0.000389,14]
[381062185,1755982241182,-829.336102,0.000389,14]
[381062186,1755982241192,-186.335141,0.000389,14]
[381062187,1755982241202,-829.336102,0.000389,14]
[381062188,1755982241212,-186.335141,0.000389,14]
[381062189,1755982241222,-829.336102,0.000389,14]
[381062190,1755982241231,-400.87353672,0.00039877,120]
[381062191,1755982241242,-162.76109423,0.000399,120]
[381062192,1755982241251,-500.0,0.00039973,5]
[381062193,1755982241262,-500.0,0.00039973,5]
[381062194,1755982241272,-500.0,0.00039973,5]
[381062195,1755982241282,-500.0,0.00039973,5]
[381062196,1755982241291,-413.03212136,0.00039973,5]
[381062197,1755982241301,-500.0,0.0004,2]
[381062198,1755982241311,-420553.64898284,0.0004,30]
[381062199,1755982241351,-48682.84261033,0.0004,30]
[381062216,1755982243152,-160.0,0.00029453,2]
[381062217,1755982243162,-151.0,0.000389,14]
[381062218,1755982243172,-151.0,0.000389,14]
[381062219,1755982243181,-12836.0784105,0.0004,30]
[381062224,1755982246362,-151.0,0.000389,14]
[381062225,1755982246372,-369649.08881452,0.0004,30]
[381062226,1755982246469,-350.943936,0.0004,30]
[381062242,1755982287294,676.40081092,0.000199,2]
[381062243,1755982287363,676.4008109,0.00023353,2]
[381062244,1755982287618,676.4008109,0.00021627,2]
[381062245,1755982288219,676.4008109,0.0002508,2]
[381062246,1755982391830,164.628819,0.00013699,2]
[381062248,1755982454269,607.21039512,0.000199,2]
[381062249,1755982454383,607.21039494,0.00021627,2]
[381062250,1755982454534,607.21039494,0.00023353,2]
[381062251,1755982455259,607.21039494,0.0002508,2]
[381062253,1755982620843,526.24900918,0.000199,2]
[381062254,1755982620940,526.24900894,0.00021627,2]
[381062255,1755982621131,526.24900894,0.0002508,2]
[381062256,1755982621362,526.24900894,0.00023353,2]
[381062257,1755982625189,604.91127464,0.00024955,14]
[381062260,1755982726442,-526.24900894,0.00026806,6]
[381062261,1755982787018,438.54084088,0.000199,2]
[381062262,1755982787387,438.54084078,0.00026806,6]
[381062263,1755982787522,438.54084078,0.00021627,2]
[381062264,1755982787734,438.54084078,0.00023353,2]
[381062265,1755982787836,438.54084078,0.0002508,2]
[381062266,1755982804830,500.0,0.00025205,2]
[381062267,1755982805194,500.0,0.00025205,2]
[381062268,1755982805554,500.0,0.00025205,2]
[381062275,1755982957859,396.94523916,0.000199,2]
[381062276,1755982958020,396.94523889,0.00023353,2]
[381062277,1755982958603,396.94523889,0.00021627,2]
[381062281,1755983125167,357.25071503,0.000199,2]
[381062282,1755983125518,357.250715,0.00021627,2]
[381062283,1755983126134,357.250715,0.00023353,2]
[381062285,1755983295672,321.5256435,0.000199,2]
[381062286,1755983295731,321.5256435,0.00021627,2]
[381062287,1755983296311,321.5256435,0.00023353,2]
[381062288,1755983315597,-321.5256435,0.0002508,2]
[381062290,1755983354083,-321.5256435,0.00026806,6]
[381062291,1755983354104,-151.0,0.00029453,2]
[381062292,1755983354124,-1903.3520565,0.00029652,2]
[381062293,1755983354146,-1200.0,0.00030257,2]
[381062294,1755983354170,-321.5256435,0.00030259,13]
[381062295,1755983354195,-321.5256435,0.00031986,17]
[381062296,1755983354218,-321.5256435,0.00033712,21]
[381062297,1755983354240,-405.54260951,0.00035048,2]
[381062298,1755983354264,-321.5256435,0.00035439,24]
[381062299,1755983354283,-204.80799284,0.00036617,2]
[381062300,1755983354304,-300.0,0.00037165,2]
[381062301,1755983354327,-321.5256435,0.00037166,28]
[381062302,1755983354349,-321.5256435,0.00038892,32]
[381062303,1755983354370,-155.584,0.000389,53]
[381062304,1755983354392,-9512.51149865,0.0003956,2]
[381062344,1755983432400,-308.64685145,0.00039637,2]
[381062346,1755983432412,-158.45244854,0.00039722,2]
[381062349,1755983432425,-1.54755146,0.00039722,2]
[381062351,1755983432436,-160.0,0.00039732,2]
[381062354,1755983432448,-376.14580871,0.00039732,2]
[381062357,1755983432459,-160.0,0.00039732,2]
[381062359,1755983432470,-529.05847148,0.0003982,2]
[381062361,1755983432480,-160.0,0.0003982,2]
[381062364,1755983432491,-170.79373632,0.00039873,2]
[381062365,1755983432502,-223.56674277,0.0003989,18]
[381062366,1755983432512,-10206.44624142,0.000399,10]
[381062367,1755983432524,-500.0,0.00039973,5]
[381062368,1755983432535,-500.0,0.00039973,5]
[381062370,1755983432546,-500.0,0.00039973,5]
[381062371,1755983432557,-500.0,0.00039973,5]
[381062372,1755983432568,-500.0,0.00039973,5]
[381062373,1755983432579,-500.0,0.00039973,5]
[381062374,1755983432591,-569.61629274,0.00039973,5]
[381062375,1755983432601,-500.0,0.00039973,5]
[381062376,1755983432612,-500.0,0.00039973,5]
[381062377,1755983432622,-500.0,0.00039973,5]
[381062378,1755983432633,-500.0,0.00039973,5]
[381062379,1755983432644,-500.0,0.00039973,5]
[381062380,1755983432654,-251.35963986,0.00039979,4]
[381062381,1755983432667,-7932.61439406,0.0003998,3]
[381062400,1755983438366,-160.0,0.0003981,2]
[381062401,1755983438376,-417.15472785,0.000399,10]
[381062402,1755983438386,-998.37621283,0.0003998,3]
[381062403,1755983438396,-8930.99060689,0.0003998,3]
[381062404,1755983438405,-17861.9812138,0.00039989,3]
[381062405,1755983438416,-500.0,0.00039989,120]
[381062406,1755983438427,-484.82324668,0.00039989,31]
[381062407,1755983438436,-44359.69299429,0.0003999,2]
[381062408,1755983438446,-142895.84971,0.0003999,3]
[381062409,1755983438457,-1000.0,0.00039999,120]
[381062410,1755983438466,-1000.0,0.00039999,14]
[381062411,1755983438476,-1000.0,0.00039999,7]
[381062412,1755983438485,-500.0,0.00039999,60]
[381062413,1755983438494,-151.24897978,0.00039999,60]
[381062414,1755983438503,-151.0,0.00039999,60]
[381062415,1755983438512,-151.0,0.00039999,60]
[381062416,1755983438522,-151.0,0.00039999,60]
[381062417,1755983438531,-151.0,0.00039999,60]
[381062418,1755983438542,-151.0,0.00039999,48]
[381062419,1755983438551,-151.0,0.00039999,60]
[381062420,1755983438560,-151.0,0.00039999,60]
[381062421,1755983438570,-151.0,0.00039999,60]
[381062422,1755983438580,-151.0,0.00039999,60]
[381062423,1755983438589,-151.0,0.00039999,60]
[381062424,1755983438599,-151.27353968,0.00039999,60]
[381062425,1755983438608,-151.0,0.00039999,60]
[381062426,1755983438617,-206.36564155,0.00039999,2]
[381062427,1755983438626,-151.0,0.00039999,60]
[381062428,1755983438635,-151.0,0.00039999,60]
[381062429,1755983438644,-151.0,0.00039999,60]
[381062430,1755983438654,-1888.0,0.00039999,30]
[381062431,1755983438663,-302.0,0.00039999,30]
[381062432,1755983438676,-151.0,0.00039999,30]
[381062433,1755983438686,-1957.856,0.00039999,30]
[381062434,1755983438696,-16000.0,0.00039999,30]
[381062435,1755983438705,-302.00000001,0.00039999,30]
[381062436,1755983438718,-2030.296672,0.00039999,30]
[381062437,1755983438727,-3847.46885296,0.00039999,30]
[381062438,1755983438736,-2105.41764886,0.00039999,30]
[381062439,1755983438746,-2183.31810187,0.00039999,30]
[381062440,1755983438756,-2264.10087164,0.00039999,30]
[381062441,1755983438766,-2347.87260389,0.00039999,30]
[381062442,1755983438775,-2434.74389024,0.00039999,30]
[381062443,1755983438785,-2524.82941417,0.00039999,30]
[381062444,1755983438795,-2618.2481025,0.00039999,30]
[381062445,1755983438804,-2715.12328229,0.00039999,30]
[381062446,1755983438814,-2815.58284374,0.00039999,30]
[381062447,1755983438823,-2919.75940895,0.00039999,30]
[381062448,1755983438832,-3027.79050709,0.00039999,30]
[381062449,1755983438842,-3139.81875585,0.00039999,30]
[381062450,1755983438851,-3255.99204981,0.00039999,30]
[381062451,1755983438860,-3376.46375566,0.00039999,30]
[381062452,1755983438869,-3501.39291462,0.00039999,30]
[381062453,1755983438878,-3630.94445246,0.00039999,30]
[381062454,1755983438887,-3399.88312237,0.00039999,30]
[381062455,1755983438897,-886958.87593548,0.0004,30]
[381062573,1755983460913,203.63290755,0.000199,2]
[381062574,1755983460950,203.63290755,0.00023353,2]
[381062575,1755983461861,203.63290755,0.00021627,2]
[381062578,1755983564042,1937.25950417,0.00026153,2]
[381062579,1755983580231,152.7718723,0.00025205,2]
[381062581,1755983628207,437.03992398,0.000199,2]
[381062582,1755983628273,437.03992391,0.00023353,2]
[381062583,1755983628572,437.03992391,0.0002508,2]
[381062584,1755983682097,151.0,0.00026153,2]
[381062585,1755983704063,1922.91953575,0.000253,2]
[381062586,1755983794103,393.33593178,0.000199,2]
[381062587,1755983795509,393.33593151,0.0002508,2]
[381062588,1755983836009,-393.33593151,0.00026806,6]
[381062589,1755983856783,-7797.29151091,0.000269,2]
[381062590,1755983961840,354.20223503,0.000199,2]
[381062591,1755983962301,354.20223483,0.00023353,2]
[381062592,1755983962438,215.30200834,0.000268,2]
[381062593,1755983962858,354.20223483,0.00021627,2]
[381062594,1755983977279,6185.39624532,0.000268,2]
[381062595,1755983996110,-4704.91848909,0.000269,2]
[381062596,1755984004292,172.24160664,0.000268,2]
[381062597,1755984016105,-1130.0,0.000269,2]
[381062598,1755984016133,-151.0,0.000269,2]
[381062599,1755984128013,318.78201155,0.000199,2]
[381062600,1755984128274,318.78201134,0.0002508,2]
[381062601,1755984128514,318.78201134,0.00021627,2]
[381062602,1755984128621,318.78201134,0.00026806,6]
[381062603,1755984128767,318.78201134,0.00023353,2]
[381062606,1755984216574,1000.0,0.00026889,2]
[381062607,1755984217029,405.41000015,0.00026889,2]
[381062608,1755984283600,151.0,0.000269,2]
[381062609,1755984295893,265.65167631,0.000199,2]
[381062610,1755984295977,265.65167611,0.00026806,6]
[381062611,1755984296016,265.65167611,0.0002508,2]
[381062612,1755984296209,265.65167611,0.00021627,2]
[381062613,1755984296360,265.65167611,0.00023353,2]
[381062615,1755984326182,340.44182372,0.00027153,7]
[381062625,1755984457466,9659.56817628,0.00027253,7]
[381062626,1755984471639,221.376397,0.000199,2]
[381062627,1755984471929,221.37639675,0.00021627,2]
[381062628,1755984472195,6672.58882535,0.00018,2]
[381062629,1755984472227,72346.23758886,0.00018,2]
[381062630,1755984494282,1942.28339133,0.00021,5]
[381062633,1755984513030,10000.01,0.0002,2]
[381062634,1755984513052,3673.79218359,0.0002,2]
[381062635,1755984516546,6326.21781641,0.0002,2]
[381062636,1755984516572,49847.13800476,0.0002,2]
[381062637,1755984517081,364.7836128,0.0002,2]
[381062638,1755984517753,37646.80285609,0.0002,2]
[381062639,1755984518462,342.59160489,0.0002,2]
[381062640,1755984518489,3422.58328283,0.0002,2]
[381062641,1755984520941,-221.37639675,0.00023353,2]
[381062642,1755984520963,-192.51605808,0.00024774,2]
[381062644,1755984522841,4347.29505665,0.0002,2]
[381062645,1755984523405,5652.71494335,0.0002,2]
[381062646,1755984523428,273.02224451,0.0002,2]
[381062647,1755984524012,-272.36045322,0.00024774,2]
[381062648,1755984525529,-225.26603376,0.0002465,2]
[381062652,1755984527460,-160.0,0.0002465,2]
[381062653,1755984528974,-199.02237085,0.0002465,2]
[381062654,1755984531146,-152.95568284,0.00024403,2]
[381062655,1755984536590,-4847.04431716,0.00024403,2]
[381062656,1755984556620,-5000.0,0.00024403,2]
[381062657,1755984556809,-300.0,0.00024648,2]
[381062658,1755984556839,-300.0,0.00024649,2]
[381062687,1755984632662,-152.95568284,0.00024403,3]
[381062688,1755984632672,-177.5520083,0.0002455,2]
[381062690,1755984632682,-1200.0,0.00024649,2]
[381062692,1755984632692,-10207.4269511,0.0002465,2]
[381062693,1755984632702,-504.96784739,0.0002465,2]
[381062695,1755984632712,-2752.50245063,0.00024774,2]
[381062697,1755984632722,-151.0,0.00024774,2]
[381062699,1755984632732,-177.5520083,0.0002624,2]
[381062701,1755984632742,-215.94678008,0.00027284,2]
[381062703,1755984632752,-166.6720307,0.00027386,2]
[381062704,1755984632762,-177.5520083,0.0002793,2]
[381062705,1755984632772,-177.5520083,0.0002962,2]
[381062706,1755984632782,-6804.29749428,0.00029628,2]
[381062707,1755984632792,-320.0369294,0.00029628,2]
[381062709,1755984632801,-170.79373632,0.00029628,2]
[381062711,1755984632811,-593.92,0.0002972,3]
[381062712,1755984632821,-339.37627268,0.00029723,2]
[381062714,1755984632830,-46180.10299372,0.00029724,20]
[381062731,1755984638653,-199.0,0.00026749,20]
[381062732,1755984638663,-151.0,0.00029628,2]
[381062733,1755984638673,-151.0,0.00029723,2]
[381062734,1755984638682,-5290.08486029,0.00029724,20]
[381062920,1755984642218,222.45513156,0.000199,2]
[381062952,1755984642513,222.45513127,0.00023353,2]
[381063092,1755984643878,-127.91923034,0.0002508,2]
[381063384,1755984646890,-94.53590093,0.0002508,2]
[381063386,1755984646900,-222.45513127,0.00026806,6]
[381063388,1755984646909,-123.89357415,0.00028533,10]
[381064299,1755984693683,336.34647039,0.00024403,7]
[381064300,1755984807797,496.63817117,0.000199,2]
[381064301,1755984808469,-336.5504043,0.00023353,2]
[381064302,1755984810613,-197.54830547,0.00021627,2]
[381064303,1755984813905,-299.08986569,0.00021627,2]
[381064304,1755984813929,-32.96196923,0.00023353,2]
[381064305,1755984818596,-127.12579763,0.00023353,2]
[381064306,1755984974477,446.97435416,0.000199,2]
[381064307,1755984975464,-375.710399,0.00021627,2]
[381064308,1755984977124,-71.26395504,0.00021627,2]
[381064309,1755984977149,-93.76208098,0.00023353,2]
[381064310,1755984979321,-195.43037143,0.00023353,2]
[381064311,1755984981477,-157.78190163,0.00023353,2]
[381064316,1755985141310,-351.59193885,0.00021627,2]
[381064317,1755985143353,-50.68497978,0.00021627,2]
[381064318,1755985143380,-402.27691863,0.00023353,2]
[381064319,1755985145119,334.2625867,0.000199,2]
[381064320,1755985145144,68.01433211,0.000199,2]
[381064321,1755985308764,362.04922697,0.000199,2]
[381064322,1755985310692,-326.0,0.00021627,2]
[381064323,1755985312265,-36.04922676,0.00021627,2]
[381064324,1755985312292,-265.32053178,0.00023353,2]
[381064325,1755985315620,-96.72869498,0.00023353,2]
[381064327,1755985474704,342.48317204,0.000199,2]
[381064328,1755985475106,342.48317182,0.00021627,2]
[381064329,1755985477850,-249.32207413,0.00023353,2]
[381064330,1755985479893,-93.16109769,0.00023353,2]
[381064331,1755985493396,-3631.87397757,0.00024287,3]
[381064332,1755985493429,-342.48317182,0.0002508,2]
[381064333,1755985493460,-342.48317182,0.00026806,6]
[381064334,1755985493489,-397.4250688,0.00027258,2]
[381064335,1755985497636,-249.32207413,0.00024044,3]
[381064336,1755985497664,-388.11484363,0.0002478,2]
[381064337,1755985497739,-7452.85008392,0.00027258,2]
[381064338,1755985497889,-4757.18913568,0.00027258,2]
[381064339,1755985497911,-485.63172864,0.00027258,2]
[381064340,1755985498019,-281.0,0.00027372,2]
[381064341,1755985498047,-300.0,0.00027372,2]
[381064342,1755985498074,-10.0,0.00027373,2]
[381064343,1755985498126,-8818.01,0.00027373,2]
[381064344,1755985511705,5000.0,0.00027373,2]
[381064345,1755985527530,4717.54410628,0.00027473,2]
[381064346,1755985567564,500.0,0.00027397,5]
[381064347,1755985641302,313.39510018,0.000199,2]
[381064348,1755985641719,313.39510013,0.00023353,2]
[381064349,1755985642184,313.39510013,0.00021627,2]
[381064350,1755985656958,-383.6040709,0.00028227,2]
[381064351,1755985677097,-199.0,0.00028433,10]
[381064352,1755985678158,670.2205265,0.00028373,2]
[381064353,1755985680286,1181.81076865,0.00025205,2]
[381064354,1755985680672,199.0,0.00028333,10]
[381064355,1755985693915,2403.95354994,0.00028473,2]
[381064356,1755985697307,-188.9947005,0.00028523,2]
[381064357,1755985697342,-313.39510013,0.00028533,10]
[381064358,1755985709887,672.28180599,0.00028573,2]
[381064359,1755985711482,5147.02515491,0.00028473,7]
[381064360,1755985762081,-196.30870751,0.00024953,3]
[381064361,1755985786324,220.0,0.00023842,3]
[381064362,1755985792261,-4039.91845891,0.00024953,3]
[381064363,1755985807890,580.58623434,0.000199,2]
[381064364,1755985808773,580.58623433,0.00026806,6]
[381064365,1755985808810,580.58623433,0.0002508,2]
[381064366,1755985808903,580.58623433,0.00021627,2]
[381064376,1755985831958,-580.58623433,0.00028533,10]
[381064378,1755985831968,-233.42301139,0.00028573,2]
[381064379,1755985831977,-1621.33108,0.000294,2]
[381064380,1755985831987,-1200.0,0.00029622,2]
[381064381,1755985831996,-4536.19832952,0.00029623,2]
[381064382,1755985832006,-170.79373632,0.00029623,2]
[381064383,1755985832015,-500.0,0.00029673,5]
[381064384,1755985832024,-237.56339087,0.00029698,2]
[381064385,1755985832034,-500.0,0.00029698,2]
[381064386,1755985832043,-642.1897587,0.00029698,2]
[381064387,1755985832053,-224.40676336,0.00029698,2]
[381064388,1755985832062,-246.58570605,0.00029699,2]
[381064389,1755985832072,-131506.32252959,0.00029699,20]
[381064390,1755985832086,-1819.9,0.00029699,20]
[381064391,1755985832101,-11508.21019646,0.00029699,20]
[381064422,1755985837898,-11250.0,0.00029699,20]
[381064462,1755985840126,-148.85193708,0.00029699,2]
[381064724,1755985842933,-1000.0,0.000294,2]
[381064725,1755985842943,-195.51,0.00029689,3]
[381064726,1755985842953,-324.23583128,0.00029698,2]
[381064727,1755985842962,-97.73376896,0.00029699,2]
[381064728,1755985842972,-36998.00351169,0.00029699,20]
[381064738,1755985974075,709.81366294,0.000199,2]
[381064739,1755985974343,709.81366279,0.0002508,2]
[381064740,1755985974704,709.81366279,0.00026806,6]
[381064741,1755986098837,160.484735,0.00013699,2]
[381064742,1755986139689,638.83229651,0.00021627,2]
[381064743,1755986139786,638.83229651,0.00023353,2]
[381064744,1755986140139,638.83229654,0.000199,2]
[381064745,1755986140343,638.83229651,0.0002508,2]
[381064746,1755986140450,638.83229651,0.00026806,6]
[381064747,1755986306900,539.35836132,0.00023353,2]
[381064748,1755986307038,539.35836132,0.00021627,2]
[381064749,1755986307318,539.35836132,0.0002508,2]
[381064750,1755986307676,539.35836153,0.000199,2]
[381064751,1755986307813,539.35836132,0.00026806,6]
[381064752,1755986476305,449.4653011,0.000199,2]
[381064753,1755986476558,449.4653011,0.0002508,2]
[381064754,1755986476861,449.4653011,0.00023353,2]
[381064755,1755986477163,68.54322864,0.00021627,2]
[381064756,1755986477189,380.92207246,0.00021627,2]
[381064757,1755986485035,5000.0,0.0002685,2]
[381064758,1755986492330,1359.88077899,0.00025227,2]
[381064759,1755986642384,389.53659428,0.00021627,2]
[381064760,1755986643245,389.53659448,0.000199,2]
[381064761,1755986643287,389.53659428,0.00023353,2]
[381064762,1755986643402,389.53659428,0.0002508,2]
[381064765,1755986673543,470.41477847,0.00025227,2]
[381064766,1755986740330,1932.0,0.00025,2]
[381064767,1755986809079,337.59838198,0.000199,2]
[381064768,1755986809683,337.5983817,0.00021627,2]
[381064769,1755986809849,337.5983817,0.00026806,6]
[381064770,1755986809983,337.5983817,0.00023353,2]
[381064771,1755986825207,-300.0,0.00028298,2]